fUSD/lending_fUSD_20250814
["ID","MTS","AMOUNT","RATE_DAILY","PERIOD"]
[379177211,1755178253142,-168.883518,0.00027522,7]
[379177212,1755178253152,-1680.48,0.00027522,2]
[379177213,1755178253161,-603.8,0.00027522,2]
[379177214,1755178253171,-400.0,0.00027522,2]
[379177215,1755178253180,-168.883518,0.00027522,7]
[379177216,1755178253190,-500.0,0.00027522,2]
[379177217,1755178253199,-400.0,0.00027522,2]
[379177218,1755178253208,-400.0,0.00027522,2]
[379177219,1755178253218,-417.48,0.00027522,2]
[379177220,1755178253228,-400.0,0.00027522,2]
[379177221,1755178253240,-400.0,0.00027522,2]
[379177222,1755178253249,-1736.49,0.00027523,2]
[379177223,1755178253258,-243.738426,0.00027523,7]
[379177224,1755178253268,-243.738426,0.00027523,7]
[379177225,1755178253277,-151.0,0.00027523,7]
[379177226,1755178253287,-157.391826,0.00027523,7]
[379177227,1755178253297,-811.3,0.00027523,2]
[379177228,1755178253307,-1338.740461,0.00027523,7]
[379177229,1755178253316,-151.0,0.00027523,7]
[379177230,1755178253326,-6987.31,0.00027523,2]
[379177231,1755178253335,-1338.740461,0.00027523,7]
[379177232,1755178253345,-5322.83,0.00027523,2]
[379177233,1755178253354,-5054.98,0.00027523,2]
[379177234,1755178253364,-3142.86,0.00027523,2]
[379177235,1755178253373,-151.0,0.00027523,7]
[379177236,1755178253383,-279.221199,0.00027523,7]
[379177237,1755178253393,-1093.89,0.00027523,2]
[379177238,1755178253403,-1600.1,0.00027523,2]
[379177239,1755178253412,-279.221199,0.00027523,7]
[379177240,1755178253421,-8685.17,0.00027523,2]
[379177241,1755178253431,-5271.46,0.00027523,2]
[379177242,1755178253441,-431.703186,0.00027523,7]
[379177243,1755178253450,-431.703186,0.00027523,7]
[379177244,1755178253460,-887.478695,0.00027523,7]
[379177245,1755178253469,-887.478695,0.00027523,7]
[379177246,1755178253479,-151.0,0.00027523,7]
[379177247,1755178253491,-151.0,0.00027523,7]
[379177248,1755178253502,-300.0,0.00027533,10]
[379177249,1755178253512,-358.416561,0.00027533,7]
[379177250,1755178253522,-151.0,0.00027533,7]
[379177251,1755178253532,-358.416561,0.00027533,7]
[379177252,1755178253541,-151.0,0.00027533,7]
[379177253,1755178253551,-153.223414,0.00027533,7]
[379177254,1755178253561,-151.0,0.00027533,7]
[379177255,1755178253570,-151.0,0.00027533,7]
[379177256,1755178253580,-151.0,0.00027533,7]
[379177257,1755178253591,-151.0,0.00027533,7]
[379177258,1755178253601,-500.0,0.00027533,2]
[379177259,1755178253610,-1736.49,0.00027533,2]
[379177260,1755178253620,-627.88,0.00027533,2]
[379177261,1755178253629,-811.3,0.00027533,2]
[379177262,1755178253640,-500.0,0.00027533,2]
[379177263,1755178253650,-1093.89,0.00027533,2]
[379177264,1755178253660,-1093.89,0.00027533,2]
[379177265,1755178253669,-156.69599539,0.00027533,2]
[379177266,1755178253679,-500.0,0.00027533,2]
[379177267,1755178253689,-758.59,0.00027533,2]
[379177268,1755178253699,-758.59,0.00027533,2]
[379177269,1755178253709,-500.0,0.00027533,2]
[379177270,1755178253720,-400.0,0.00027534,2]
[379177271,1755178253730,-1254.44,0.00027534,2]
[379177272,1755178253743,-1501.3,0.00027534,2]
[379177273,1755178253753,-400.0,0.00027534,2]
[379177274,1755178253763,-400.0,0.00027534,2]
[379177275,1755178253773,-1097.15,0.00027534,2]
[379177276,1755178253784,-1678.04,0.00027534,2]
[379177277,1755178253794,-405.72067032,0.00027534,2]
[379177278,1755178253804,-400.0,0.00027534,2]
[379177279,1755178253814,-2585.69,0.00027534,2]
[379177280,1755178253825,-163.545551,0.00027534,7]
[379177281,1755178253835,-163.545551,0.00027534,7]
[379177282,1755178253845,-400.0,0.00027534,2]
[379177283,1755178253855,-400.0,0.00027534,2]
[379177284,1755178253864,-400.0,0.00027534,2]
[379177285,1755178253874,-400.0,0.00027534,2]
[379177286,1755178253884,-3002.7,0.00027534,2]
[379177287,1755178253894,-400.0,0.00027534,2]
[379177288,1755178253904,-1809.25,0.00027534,2]
[379177289,1755178253914,-2920.21,0.00027534,2]
[379177290,1755178253925,-400.0,0.00027534,2]
[379177291,1755178253935,-591.96,0.00027534,2]
[379177292,1755178253945,-2523.97,0.00027534,2]
[379177293,1755178253955,-4510.49,0.00027534,2]
[379177294,1755178253965,-5282.96,0.00027534,2]
[379177295,1755178253978,-400.0,0.00027534,2]
[379177296,1755178253990,-400.0,0.00027534,2]
[379177297,1755178254000,-2983.36,0.00027534,2]
[379177298,1755178254011,-894.0,0.00027534,2]
[379177299,1755178254022,-400.0,0.00027534,2]
[379177300,1755178254032,-400.0,0.00027534,2]
[379177301,1755178254042,-3460.96,0.00027534,2]
[379177302,1755178254053,-400.0,0.00027534,2]
[379177303,1755178254065,-460.11,0.00027534,2]
[379177304,1755178254075,-400.0,0.00027534,2]
[379177305,1755178254086,-400.0,0.00027534,2]
[379177306,1755178254096,-3188.75,0.00027534,2]
[379177307,1755178254106,-396.1103147,0.00027534,2]
[379177308,1755178254115,-5402.52,0.00027534,2]
[379177309,1755178254125,-400.0,0.00027534,2]
[379177310,1755178254135,-400.0,0.00027534,2]
[379177311,1755178254144,-1227.95,0.00027534,2]
[379177312,1755178254154,-2080.78,0.00027534,2]
[379177313,1755178254164,-400.0,0.00027534,2]
[379177314,1755178254174,-2682.83,0.00027534,2]
[379177315,1755178254184,-400.0,0.00027534,2]
[379177316,1755178254195,-705.44,0.00027534,2]
[379177317,1755178254205,-5323.19,0.00027534,2]
[379177318,1755178254215,-3521.61,0.00027534,2]
[379177319,1755178254224,-785.29,0.00027534,2]
[379177320,1755178254236,-1669.05,0.00027534,2]
[379177321,1755178254246,-3093.58,0.00027534,2]
[379177322,1755178254256,-400.0,0.00027534,2]
[379177323,1755178254266,-400.0,0.00027534,2]
[379177324,1755178254276,-3995.74,0.00027534,2]
[379177325,1755178254286,-5119.26,0.00027534,2]
[379177326,1755178254296,-2561.2,0.00027534,2]
[379177327,1755178254306,-400.0,0.00027534,2]
[379177328,1755178254316,-400.0,0.00027534,2]
[379177329,1755178254326,-1347.655785,0.00027534,2]
[379177330,1755178254336,-400.0,0.00027534,2]
[379177331,1755178254346,-2766.8,0.00027534,2]
[379177332,1755178254357,-3803.08,0.00027534,2]
[379177333,1755178254367,-400.0,0.00027534,2]
[379177334,1755178254377,-2033.2,0.00027534,2]
[379177335,1755178254387,-2247.60654,0.00027534,2]
[379177336,1755178254397,-400.0,0.00027534,2]
[379177337,1755178254408,-254.325724,0.00027534,2]
[379177338,1755178254417,-400.0,0.00027534,2]
[379177339,1755178254427,-3618.52,0.00027534,2]
[379177340,1755178254437,-275.76787945,0.00027534,2]
[379177341,1755178254447,-1169.56,0.00027534,2]
[379177342,1755178254456,-400.0,0.00027534,2]
[379177343,1755178254466,-400.0,0.00027534,2]
[379177344,1755178254476,-1375.81,0.00027534,2]
[379177345,1755178254487,-400.0,0.00027534,2]
[379177346,1755178254497,-1078.57,0.00027534,2]
[379177347,1755178254507,-400.0,0.00027534,2]
[379177348,1755178254517,-400.0,0.00027534,2]
[379177349,1755178254527,-400.0,0.00027534,2]
[379177350,1755178254537,-4579.53,0.00027534,2]
[379177351,1755178254547,-2606.6,0.00027534,2]
[379177352,1755178254557,-400.0,0.00027534,2]
[379177353,1755178254568,-1958.715724,0.00027534,2]
[379177354,1755178254577,-2369.25,0.00027534,2]
[379177355,1755178254588,-2909.22,0.00027534,2]
[379177356,1755178254598,-6062.73,0.00027534,2]
[379177357,1755178254608,-1499.74,0.00027534,2]
[379177358,1755178254618,-400.0,0.00027534,2]
[379177359,1755178254628,-1548.97,0.00027534,2]
[379177360,1755178254638,-150.670127,0.00027534,2]
[379177361,1755178254649,-2223.12,0.00027534,2]
[379177362,1755178254659,-400.0,0.00027534,2]
[379177363,1755178254670,-151.0,0.00027534,7]
[379177364,1755178254680,-2071.97,0.00027534,2]
[379177365,1755178254691,-608.65,0.00027534,2]
[379177366,1755178254702,-1696.13,0.00027534,2]
[379177367,1755178254712,-151.0,0.00027534,7]
[379177368,1755178254722,-1695.9,0.00027534,2]
[379177369,1755178254735,-400.0,0.00027534,2]
[379177370,1755178254745,-4141.09,0.00027534,2]
[379177371,1755178254756,-2645.31,0.00027534,2]
[379177372,1755178254766,-5431.6,0.00027534,2]
[379177373,1755178254777,-400.0,0.00027534,2]
[379177374,1755178254787,-400.0,0.00027534,2]
[379177375,1755178254797,-400.0,0.00027534,2]
[379177376,1755178254807,-3680.12,0.00027534,2]
[379177377,1755178254817,-2618.1,0.00027534,2]
[379177378,1755178254827,-400.0,0.00027534,2]
[379177379,1755178254837,-2881.28,0.00027534,2]
[379177380,1755178254848,-400.0,0.00027534,2]
[379177381,1755178254857,-827.59,0.00027534,2]
[379177382,1755178254867,-4120.33,0.00027534,2]
[379177383,1755178254877,-1564.01,0.00027534,2]
[379177384,1755178254887,-400.0,0.00027534,2]
[379177385,1755178254898,-400.0,0.00027534,2]
[379177386,1755178254909,-3348.54,0.00027534,2]
[379177387,1755178254919,-400.0,0.00027534,2]
[379177388,1755178254929,-2508.89,0.00027534,2]
[379177389,1755178254940,-400.0,0.00027534,2]
[379177390,1755178254950,-3115.72,0.00027534,2]
[379177391,1755178254960,-400.0,0.00027534,2]
[379177392,1755178254970,-2713.99,0.00027534,2]
[379177393,1755178254980,-243.738426,0.00027534,7]
[379177394,1755178254998,-1823.8,0.00027534,2]
[379177395,1755178255008,-400.0,0.00027534,2]
[379177396,1755178255019,-243.738426,0.00027534,7]
[379177397,1755178255030,-400.0,0.00027534,2]
[379177398,1755178255041,-400.0,0.00027534,2]
[379177399,1755178255052,-2993.95,0.00027534,2]
[379177400,1755178255063,-2215.81,0.00027534,2]
[379177401,1755178255074,-400.0,0.00027534,2]
[379177402,1755178255084,-4360.09,0.00027534,2]
[379177403,1755178255094,-3516.29,0.00027534,2]
[379177404,1755178255105,-3131.85,0.00027534,2]
[379177405,1755178255115,-1756.4,0.00027534,2]
[379177406,1755178255126,-151.0,0.00027534,7]
[379177407,1755178255137,-400.0,0.00027534,2]
[379177408,1755178255147,-400.0,0.00027534,2]
[379177409,1755178255158,-400.0,0.00027534,2]
[379177410,1755178255168,-1931.38,0.00027534,2]
[379177411,1755178255178,-400.0,0.00027534,2]
[379177412,1755178255189,-1131.28,0.00027534,2]
[379177413,1755178255199,-569.88,0.00027534,2]
[379177414,1755178255209,-400.0,0.00027534,2]
[379177415,1755178255219,-400.0,0.00027534,2]
[379177416,1755178255229,-3565.81,0.00027534,2]
[379177417,1755178255242,-2035.66,0.00027534,2]
[379177418,1755178255252,-463.6705208,0.00027534,2]
[379177419,1755178255262,-537.96,0.00027534,2]
[379177420,1755178255273,-400.0,0.00027534,2]
[379177421,1755178255283,-400.0,0.00027534,2]
[379177422,1755178255294,-1949.81,0.00027534,2]
[379177423,1755178255304,-400.0,0.00027534,2]
[379177424,1755178255314,-400.0,0.00027534,2]
[379177425,1755178255325,-2705.13,0.00027534,2]
[379177426,1755178255336,-400.0,0.00027534,2]
[379177427,1755178255346,-441.31,0.00027534,2]
[379177428,1755178255357,-400.0,0.00027534,2]
[379177429,1755178255367,-2601.43,0.00027534,2]
[379177430,1755178255378,-400.0,0.00027534,2]
[379177431,1755178255388,-5897.19,0.00027534,2]
[379177432,1755178255399,-1338.740461,0.00027534,7]
[379177433,1755178255409,-151.0,0.00027534,7]
[379177434,1755178255419,-400.0,0.00027534,2]
[379177435,1755178255431,-2536.67,0.00027534,2]
[379177436,1755178255441,-3896.37,0.00027534,2]
[379177437,1755178255451,-1338.740461,0.00027534,7]
[379177438,1755178255462,-2982.14,0.00027534,2]
[379177439,1755178255472,-500.01,0.00027534,2]
[379177440,1755178255485,-400.0,0.00027534,2]
[379177441,1755178255495,-2906.64,0.00027534,2]
[379177442,1755178255505,-4162.85,0.00027534,2]
[379177443,1755178255517,-400.0,0.00027534,2]
[379177444,1755178255527,-3011.66,0.00027534,2]
[379177445,1755178255537,-400.0,0.00027534,2]
[379177446,1755178255547,-3233.9,0.00027534,2]
[379177447,1755178255558,-3010.16,0.00027534,2]
[379177448,1755178255568,-400.0,0.00027534,2]
[379177449,1755178255578,-1411.3,0.00027534,2]
[379177450,1755178255588,-400.0,0.00027534,2]
[379177451,1755178255599,-3958.82,0.00027534,2]
[379177452,1755178255609,-400.0,0.00027534,2]
[379177453,1755178255620,-1264.18,0.00027534,2]
[379177454,1755178255630,-14216.4,0.00027534,2]
[379177455,1755178255640,-7064.1,0.00027534,2]
[379177456,1755178256026,-1518.25,0.00027534,2]
[379177457,1755178256052,-400.0,0.00027534,2]
[379177458,1755178256064,-3136.86,0.00027534,2]
[379177459,1755178256074,-14190.43,0.00027534,2]
[379177460,1755178256084,-400.0,0.00027534,2]
[379177461,1755178256094,-3094.12,0.00027534,2]
[379177462,1755178256104,-400.0,0.00027534,2]
[379177463,1755178256114,-1590.72,0.00027534,2]
[379177464,1755178256124,-400.0,0.00027534,2]
[379177465,1755178256134,-840.6,0.00027534,2]
[379177466,1755178256144,-151.0,0.00027534,7]
[379177467,1755178256155,-400.0,0.00027534,2]
[379177468,1755178256165,-279.221199,0.00027534,7]
[379177469,1755178256175,-6013.81,0.00027534,2]
[379177470,1755178256185,-1741.3,0.00027534,2]
[379177471,1755178256195,-801.86,0.00027534,2]
[379177472,1755178256206,-9558.01,0.00027534,2]
[379177473,1755178256216,-3044.94,0.00027534,2]
[379177474,1755178256226,-279.221199,0.00027534,7]
[379177475,1755178256238,-3505.08,0.00027534,2]
[379177476,1755178256248,-400.0,0.00027534,2]
[379177477,1755178256258,-4064.9,0.00027534,2]
[379177478,1755178256268,-2279.39,0.00027534,2]
[379177479,1755178256279,-2622.81,0.00027534,2]
[379177480,1755178256289,-400.0,0.00027534,2]
[379177481,1755178256299,-489.64,0.00027534,2]
[379177482,1755178256309,-389.2517168,0.00027534,2]
[379177483,1755178256319,-3761.13,0.00027534,2]
[379177484,1755178256329,-400.0,0.00027534,2]
[379177485,1755178256339,-5221.68,0.00027534,2]
[379177486,1755178256350,-4115.14,0.00027534,2]
[379177487,1755178256359,-5170.18,0.00027534,2]
[379177488,1755178256369,-400.0,0.00027534,2]
[379177489,1755178256379,-452.77,0.00027534,2]
[379177490,1755178256389,-769.5,0.00027534,2]
[379177491,1755178256399,-13130.29,0.00027534,2]
[379177492,1755178256408,-5261.43263619,0.00027534,2]
[379177493,1755178257775,-301.59306221,0.00027397,2]
[379177494,1755178258928,-198.40693779,0.00027397,2]
[379177495,1755178258938,-36.65736381,0.00027534,2]
[379177496,1755178258949,-1544.67,0.00027534,2]
[379177497,1755178258958,-400.0,0.00027534,2]
[379177498,1755178258967,-400.0,0.00027534,2]
[379177499,1755178258978,-8208.39,0.00027534,2]
[379177500,1755178258988,-6535.87,0.00027534,2]
[379177501,1755178259001,-5931.17,0.00027534,2]
[379177502,1755178259011,-400.0,0.00027534,2]
[379177503,1755178259020,-6985.88,0.00027534,2]
[379177504,1755178259029,-4516.57,0.00027534,2]
[379177505,1755178259040,-400.0,0.00027534,2]
[379177506,1755178259050,-4972.31,0.00027534,2]
[379177507,1755178259059,-400.0,0.00027534,2]
[379177508,1755178259070,-21185.58345736,0.00027534,2]
[379177509,1755178259094,-1472.84209943,0.00027534,2]
[379177510,1755178259109,-597.2922,0.00027534,2]
[379177511,1755178259121,-594.95,0.00027534,2]
[379177512,1755178260551,-1127.65514914,0.00026933,2]
[379177513,1755178260585,-6761.4783565,0.00026933,2]
[379177514,1755178260595,-400.0,0.00027397,2]
[379177515,1755178260605,-500.0,0.00027397,2]
[379177516,1755178260615,-51.41256428,0.00027397,2]
[379177517,1755178260630,-370.40743572,0.00027397,2]
[379177518,1755178260640,-284.24862777,0.00027397,2]
[379177519,1755178260655,-262.49137223,0.00027397,2]
[379177520,1755178260666,-500.0,0.00027397,2]
[379177521,1755178260676,-297.07862777,0.00027397,2]
[379177522,1755178260692,-102.92137223,0.00027397,2]
[379177523,1755178260702,-482.83695956,0.00027397,2]
[379177524,1755178260715,-17.16304044,0.00027397,2]
[379177525,1755178260725,-500.0,0.00027397,2]
[379177526,1755178260735,-500.0,0.00027397,2]
[379177527,1755178260754,-400.0,0.00027397,2]
[379177528,1755178260764,-601.83593235,0.00027397,2]
[379177529,1755178260774,-729.15,0.00027397,2]
[379177530,1755178260785,-400.0,0.00027397,2]
[379177531,1755178260795,-400.0,0.00027522,2]
[379177532,1755178260806,-4237.76,0.00027522,2]
[379177533,1755178260817,-2188.11224321,0.00027534,2]
[379177534,1755178260828,-400.0,0.00027534,2]
[379177535,1755178260838,-546.05,0.00027534,2]
[379177536,1755178260849,-400.0,0.00027534,2]
[379177537,1755178260860,-400.0,0.00027534,2]
[379177538,1755178260871,-400.0,0.00027534,2]
[379177539,1755178260881,-7561.21,0.00027534,2]
[379177540,1755178260892,-431.703186,0.00027534,7]
[379177541,1755178260903,-400.0,0.00027534,2]
[379177542,1755178260914,-500.0,0.00027534,2]
[379177543,1755178260925,-852.27,0.00027534,2]
[379177544,1755178260936,-8987.94,0.00027534,2]
[379177545,1755178260946,-545.1,0.00027534,2]
[379177546,1755178260956,-5881.32,0.00027534,2]
[379177547,1755178260966,-431.703186,0.00027534,7]
[379177548,1755178260978,-5649.41,0.00027534,2]
[379177549,1755178260992,-2649.47,0.00027534,2]
[379177550,1755178261004,-11189.62,0.00027534,2]
[379177551,1755178261014,-400.0,0.00027534,2]
[379177552,1755178261024,-435.54,0.00027534,2]
[379177553,1755178261036,-4165.72,0.00027534,2]
[379177554,1755178261046,-400.0,0.00027534,2]
[379177555,1755178261055,-400.0,0.00027534,2]
[379177556,1755178261066,-3667.39,0.00027534,2]
[379177557,1755178261076,-400.0,0.00027534,2]
[379177558,1755178261086,-400.0,0.00027534,2]
[379177559,1755178261096,-7850.05,0.00027534,2]
[379177560,1755178261107,-3514.92,0.00027534,2]
[379177561,1755178261117,-3442.35,0.00027534,2]
[379177562,1755178261128,-3811.53,0.00027534,2]
[379177563,1755178261139,-400.0,0.00027534,2]
[379177564,1755178261150,-10040.0,0.00027534,2]
[379177565,1755178261160,-400.0,0.00027534,2]
[379177566,1755178261171,-400.0,0.00027534,2]
[379177567,1755178261182,-400.0,0.00027534,2]
[379177568,1755178261192,-273.30951994,0.00027534,2]
[379177569,1755178261203,-4570.62,0.00027534,2]
[379177570,1755178261215,-3669.08,0.00027534,2]
[379177571,1755178261226,-400.0,0.00027534,2]
[379177572,1755178261237,-3677.46,0.00027534,2]
[379177573,1755178261253,-2477.46,0.00027534,2]
[379177574,1755178261264,-7712.25,0.00027534,2]
[379177575,1755178261275,-400.0,0.00027534,2]
[379177576,1755178261286,-7209.35,0.00027534,2]
[379177577,1755178261296,-400.0,0.00027534,2]
[379177578,1755178261307,-7870.42,0.00027534,2]
[379177579,1755178261318,-2006.87,0.00027534,2]
[379177580,1755178261328,-400.0,0.00027534,2]
[379177581,1755178261338,-400.0,0.00027534,2]
[379177582,1755178261348,-400.0,0.00027534,2]
[379177583,1755178261359,-400.0,0.00027534,2]
[379177584,1755178261369,-400.0,0.00027534,2]
[379177585,1755178261379,-842.76,0.00027534,2]
[379177586,1755178261389,-400.0,0.00027534,2]
[379177587,1755178261399,-5649.96,0.00027534,2]
[379177588,1755178261410,-5952.51,0.00027534,2]
[379177589,1755178261420,-2057.48,0.00027534,2]
[379177590,1755178261431,-400.0,0.00027534,2]
[379177591,1755178261441,-400.0,0.00027534,2]
[379177592,1755178261451,-984.95,0.00027534,2]
[379177593,1755178261461,-1020.48,0.00027534,2]
[379177594,1755178261472,-400.0,0.00027534,2]
[379177595,1755178261482,-593.62,0.00027534,2]
[379177596,1755178261498,-8028.24,0.00027534,2]
[379177597,1755178261510,-400.0,0.00027534,2]
[379177598,1755178261521,-400.0,0.00027534,2]
[379177599,1755178261532,-4620.6,0.00027534,2]
[379177600,1755178261542,-400.0,0.00027534,2]
[379177601,1755178261553,-400.0,0.00027534,2]
[379177602,1755178261563,-400.0,0.00027534,2]
[379177603,1755178261573,-4039.97,0.00027534,2]
[379177604,1755178261583,-400.0,0.00027534,2]
[379177605,1755178261593,-3289.74,0.00027534,2]
[379177606,1755178261603,-2221.32,0.00027534,2]
[379177607,1755178261612,-400.0,0.00027534,2]
[379177608,1755178261622,-9933.02,0.00027534,2]
[379177609,1755178261633,-425.57955334,0.00027534,2]
[379177610,1755178261643,-14561.46,0.00027534,2]
[379177611,1755178261654,-5974.98,0.00027534,2]
[379177612,1755178261664,-400.0,0.00027534,2]
[379177613,1755178261675,-6194.51,0.00027534,2]
[379177614,1755178261686,-716.85,0.00027534,2]
[379177615,1755178261697,-400.0,0.00027534,2]
[379177616,1755178261709,-5978.02,0.00027534,2]
[379177617,1755178261720,-400.0,0.00027534,2]
[379177618,1755178261731,-400.0,0.00027534,2]
[379177619,1755178261750,-8231.64,0.00027534,2]
[379177620,1755178261763,-6228.51,0.00027534,2]
[379177621,1755178261774,-400.0,0.00027534,2]
[379177622,1755178261785,-400.0,0.00027534,2]
[379177623,1755178261797,-2296.25,0.00027534,2]
[379177624,1755178261808,-400.0,0.00027534,2]
[379177625,1755178261819,-18586.09,0.00027534,2]
[379177626,1755178261830,-400.0,0.00027534,2]
[379177627,1755178261840,-5344.89,0.00027534,2]
[379177628,1755178261851,-4340.9,0.00027534,2]
[379177629,1755178261860,-19481.05,0.00027534,2]
[379177630,1755178261870,-8979.25,0.00027534,2]
[379177631,1755178261880,-12710.28,0.00027534,2]
[379177632,1755178261890,-400.0,0.00027534,2]
[379177633,1755178261900,-400.0,0.00027534,2]
[379177634,1755178261910,-362.67,0.00027534,2]
[379177635,1755178261920,-1750.93,0.00027534,2]
[379177636,1755178261930,-3922.65,0.00027534,2]
[379177637,1755178261940,-887.478695,0.00027534,7]
[379177638,1755178261950,-887.478695,0.00027534,7]
[379177639,1755178261960,-10740.15,0.00027534,2]
[379177640,1755178261971,-400.0,0.00027534,2]
[379177641,1755178261985,-4499.22,0.00027534,2]
[379177642,1755178262004,-887.478695,0.00027534,7]
[379177643,1755178262015,-887.478695,0.00027534,7]
[379177644,1755178262025,-400.0,0.00027534,2]
[379177645,1755178262036,-953.3,0.00027534,2]
[379177646,1755178262046,-400.0,0.00027534,2]
[379177647,1755178262056,-611.7,0.00027534,2]
[379177648,1755178262066,-6159.62,0.00027534,2]
[379177649,1755178262077,-4540.75,0.00027534,2]
[379177650,1755178262088,-400.0,0.00027534,2]
[379177651,1755178262098,-12050.09,0.00027534,2]
[379177652,1755178262109,-3118.4,0.00027534,2]
[379177653,1755178262119,-5631.55,0.00027534,2]
[379177654,1755178262129,-4496.18,0.00027534,2]
[379177655,1755178262139,-400.0,0.00027534,2]
[379177656,1755178262150,-5882.32,0.00027534,2]
[379177657,1755178262160,-4723.93,0.00027534,2]
[379177658,1755178262170,-458.76569234,0.00027534,2]
[379177659,1755178262181,-2970.95,0.00027534,2]
[379177660,1755178262191,-2884.88,0.00027534,2]
[379177661,1755178262201,-8662.07,0.00027534,2]
[379177662,1755178262211,-525.18542391,0.00027534,2]
[379177663,1755178262222,-1005.01,0.00027534,2]
[379177664,1755178262232,-400.0,0.00027534,2]
[379177665,1755178262247,-2483.8,0.00027534,2]
[379177666,1755178262258,-10803.2,0.00027534,2]
[379177667,1755178262269,-7789.46,0.00027534,2]
[379177668,1755178262279,-400.0,0.00027534,2]
[379177669,1755178262290,-6961.76,0.00027534,2]
[379177670,1755178262302,-21966.51,0.00027534,2]
[379177671,1755178262313,-3336.35,0.00027534,2]
[379177672,1755178262323,-4237.96,0.00027534,2]
[379177673,1755178262334,-400.0,0.00027534,2]
[379177674,1755178262353,-7391.83,0.00027534,2]
[379177675,1755178262371,-3031.34,0.00027534,2]
[379177676,1755178262382,-1944.84,0.00027534,2]
[379177677,1755178262392,-3770.52,0.00027534,2]
[379177678,1755178262403,-400.0,0.00027534,2]
[379177679,1755178262414,-5656.53,0.00027534,2]
[379177680,1755178262425,-9831.27,0.00027534,2]
[379177681,1755178262436,-2326.63,0.00027534,2]
[379177682,1755178262447,-5789.05,0.00027534,2]
[379177683,1755178262457,-400.0,0.00027534,2]
[379177684,1755178262467,-5175.57,0.00027534,2]
[379177685,1755178262478,-1454.11,0.00027534,2]
[379177686,1755178262489,-400.0,0.00027534,2]
[379177687,1755178262502,-5665.64,0.00027534,2]
[379177688,1755178262512,-151.0,0.00027534,7]
[379177689,1755178262522,-3164.17,0.00027534,2]
[379177690,1755178262532,-798.01,0.00027534,2]
[379177691,1755178262543,-400.0,0.00027534,2]
[379177692,1755178262553,-151.0,0.00027534,7]
[379177693,1755178262563,-4782.4,0.00027534,2]
[379177694,1755178262575,-400.0,0.00027534,2]
[379177695,1755178262585,-5473.1,0.00027534,2]
[379177696,1755178262597,-4826.88,0.00027534,2]
[379177697,1755178262607,-13682.35,0.00027534,2]
[379177698,1755178262617,-6828.46,0.00027534,2]
[379177699,1755178262628,-400.0,0.00027534,2]
[379177700,1755178262639,-2848.66,0.00027534,2]
[379177701,1755178262649,-400.0,0.00027534,2]
[379177702,1755178262660,-400.0,0.00027534,2]
[379177703,1755178262670,-400.0,0.00027534,2]
[379177704,1755178262680,-400.0,0.00027534,2]
[379177705,1755178262690,-400.0,0.00027534,2]
[379177706,1755178262700,-4471.08,0.00027534,2]
[379177707,1755178262711,-1765.91,0.00027534,2]
[379177708,1755178262722,-4137.05,0.00027534,2]
[379177709,1755178262732,-3624.02,0.00027534,2]
[379177710,1755178262746,-2962.3,0.00027534,2]